[Event "53rd Indian Junior Open-ch 2024"]
[Site "Karnal"]
[Date "2024.09.16"]
[Round "1.6"]
[White "Eugen Mehul Shah"]
[Black "Nagarkatte Vedant"]
[Result "1/2-1/2"]
[ECO "E15"]
[WhiteElo "1759"]
[BlackElo "2260"]
[Annotator "TA"]
[PlyCount "118"]
[EventDate "2024.09.16"]
[EventType "swiss"]
[EventCountry "IND"]
[SourceTitle "playchess.com"]
[Source "ChessBase"]
[SourceQuality "1"]
[TimeControl "5400+30"]

{[%evp 20,118,19,21,10,20,15,-12,-8,-19,-8,0,6,-20,0,-11,-11,-14,-14,-31,8,-29,0,-9,0,-39,-17,-42,0,-2,0,0,0,0,0,-12,0,0,0,0,0,-60,-46,-47,-65,-39,0,-45,0,0,0,0,0,0,0,0,0,0,0,0,0,-8,-8,-8,-8,-8,-8,-8,-8,-8,-8,-8,-8,-8,-8,-8,-8,-8,-8,-8,-8,-8,-8,-8,-1,-2,0,0,0,0,0,-8,0,0,0,0,0,0,0,0,0]} 1. d4 {[%emt 0:00:03]} d5 {[%emt 0:00:05]} 2. c4 {[%emt 0:00:04]} e6 {[%emt 0:00:02]} 3. Nf3 {[%emt 0:00:07]} Nf6 {[%emt 0:00:03]} 4. g3 {[%emt 0:00:05]} Bb4+ {[%emt 0:00:03]} 5. Bd2 {[%emt 0:00:04]} Be7 {[%emt 0:00:05]} 6. Bg2 {[%emt 0:00:14]} O-O {[%emt 0:00:05]} 7. O-O {[%emt 0:00:05]} c6 {[%emt 0:00:09]} 8. Qc2 {[%emt 0:03:03]} Nbd7 {[%emt 0:00:04]} 9. Rd1 {[%emt 0:00:13]} b6 {[%emt 0:00:28]} 10. b3 {[%emt 0:01:00]} Ba6 {[%emt 0:00:25]} 11. a4 {[%emt 0:03:53]} Ne4 {[%emt 0:02:30]} 12. Be1 {[%emt 0:14:33]} f5 {[%emt 0:22:15]} 13. Na3 {[%emt 0:18:03]} Rc8 {[%emt 0:14:54]} 14. cxd5 {[%emt 0:12:33]} cxd5 {[%emt 0:01:41]} 15. Qb2 {[%emt 0:00:37]} Rc7 {[%emt 0:16:09]} 16. Bf1 {[%emt 0:13:14]} Qb8 {[%emt 0:06:17]} 17. Nb5 {[%emt 0:10:59]} Bxb5 {[%emt 0:01:33]} 18. axb5 {[%emt 0:02:19]} Rfc8 {[%emt 0:00:35]} 19. Rdc1 {[%emt 0:04:43]} Bd6 {[%emt 0:11:04]} 20. Bd2 {[%emt 0:07:30]} Ndf6 {[%emt 0:11:56]} 21. Rxc7 {[%emt 0:01:55]} Rxc7 {[%emt 0:00:06]} 22. Rc1 {[%emt 0:00:58]} Nxd2 {[%emt 0:02:45]} 23. Nxd2 {[%emt 0:00:07]} f4 {[%emt 0:00:05]} 24. Rc3 {[%emt 0:02:23]} Qc8 {[%emt 0:01:06]} 25. Rxc7 {[%emt 0:00:11]} Qxc7 {[%emt 0:00:02]} 26. gxf4 {[%emt 0:01:57]} Bxf4 {[%emt 0:09:03]} 27. Nf3 {[%emt 0:00:33] White is weak on the dark squares} g5 {[%emt 0:00:00]} 28. h3 $1 {[%emt 0:00:48]} h5 {[%emt 0:00:00]} 29. e3 {[%emt 0:00:30]} g4 $1 {[%emt 0:00:00]} 30. exf4 {[%emt 0:00:23]} (30. hxg4 $11 hxg4 31. Ne1) 30... gxf3 $11 {[%emt 0:00:00][%mdl 4096] Endgame. KQB-KQN} 31. Qd2 {[%emt 0:00:43]} Ne4 {[%emt 0:01:36]} 32. Qe3 {[%emt 0:00:13]} Qc3 {[%emt 0:00:26]} (32... Qg7+ $5 33. Kh1 Kf8 $17) 33. Kh2 {[%emt 0:01:39]} Qxe3 {[%emt 0:00:52]} 34. fxe3 $15 {[%emt 0:00:06] KB-KN. The position is equal.} h4 {[%emt 0:00:13]} 35. Bd3 {[%emt 0:01:05]} Nd2 {[%emt 0:00:48]} 36. b4 {[%emt 0:00:46]} Nc4 {[%emt 0:00:30]} 37. Kg1 {[%emt 0:00:18]} Nxe3 {[%emt 0:00:28] [#] And now ...Ng2 would win.} 38. Kf2 {[%emt 0:00:28][%csl LRe3,LRf3]} Nd1+ {[%emt 0:00:35]} 39. Kxf3 {[%emt 0:00:19]} Kg7 {[%emt 0:00:05]} 40. Bc2 {[%emt 0:00:38]} Nc3 {[%emt 0:00:08]} 41. Bd3 {[%emt 0:00:07]} Na2 {[%emt 0:00:41]} 42. Kg4 {[%emt 0:00:59]} Nxb4 {[%emt 0:00:58]} 43. Bb1 {[%emt 0:00:01]} a5 {[%emt 0:00:16]} 44. bxa6 $1 {[%emt 0:00:04]} (44. Kxh4 $2 {perishes.} Kf6 45. Kg4 a4 $19) 44... Nxa6 {[%emt 0:00:04]} 45. f5 {[%emt 0:01:30]} Kf6 {[%emt 0:01:05]} 46. fxe6 {[%emt 0:00:08]} Nc7 {[%emt 0:00:41]} 47. e7 {[%emt 0:00:42]} Kxe7 {[%emt 0:00:04]} 48. Kxh4 {[%emt 0:00:16]} Nb5 {[%emt 0:00:03]} 49. Kg4 {[%emt 0:00:41]} Nxd4 {[%emt 0:00:35]} 50. h4 {[%emt 0:00:16][%cal Bh3h4,Bh4h5,Bh5h6,Bh6h7][%mdl 32]} Kf6 {[%emt 0:01:05]} 51. h5 {[%emt 0:00:50]} Nc6 {[%emt 0:00:42]} 52. h6 {[%emt 0:00:27]} Ne7 {[%emt 0:00:34]} 53. h7 {[%emt 0:00:47]} Kg7 {[%emt 0:00:00]} 54. Kf4 {[%emt 0:00:33]} Nc6 {[%emt 0:00:19]} 55. Kf5 {[%emt 0:00:18]} Nb4 {[%emt 0:00:39]} 56. Ke5 {[%emt 0:00:12]} Kh8 {[%emt 0:00:03]} 57. Kd4 {[%emt 0:00:27]} Kg7 {[%emt 0:00:18]} 58. Ke5 {[%emt 0:00:13]} Kh8 {[%emt 0:01:03]} 59. Kd4 {[%emt 0:00:08]} Kg7 {[%emt 0:00:26] Weighted Error Value: White=0.09 (flawless) /Black=0.08 (flawless) .  Mistake:       	White=1     	---        Inaccurate:     	White=5     	Black=4      OK:         	White=26    	Black=16     Best:        	White=1     	Black=2      Strong:       	White=2     	Black=1} 1/2-1/2

[Event "53rd Indian Junior Open-ch 2024"]
[Site "Karnal"]
[Date "2024.09.16"]
[Round "1.7"]
[White "Jaiveer Mahendru"]
[Black "Aniket Ranjan"]
[Result "1-0"]
[ECO "A03"]
[WhiteElo "2246"]
[BlackElo "1758"]
[Annotator "TA"]
[PlyCount "57"]
[EventDate "2024.09.16"]
[EventType "swiss"]
[EventCountry "IND"]
[SourceTitle "playchess.com"]
[Source "ChessBase"]
[SourceQuality "1"]
[TimeControl "5400+30"]

{[%evp 9,57,0,0,-11,0,-1,18,-8,36,4,23,-12,-15,-65,-31,-32,-18,-20,0,-21,-19,-37,-8,-61,-54,-80,-64,-58,-12,-81,11,33,66,63,98,64,71,97,641,689,2156,2104,29995,29996,29996,4906,3532,2901,29990,29991]} 1. f4 {[%emt 0:00:09]} d5 {[%emt 0:06:49]} 2. Nf3 {[%emt 0:00:04]} Nf6 {[%emt 0:01:22]} 3. e3 {[%emt 0:00:13]} g6 {[%emt 0:00:40]} 4. d4 {[%emt 0:01:52]} Bg7 {[%emt 0:00:53]} 5. Bd3 {[%emt 0:00:04]} a6 {[%emt 0:03:05]} 6. O-O {[%emt 0:00:15] [#]} c5 $1 {[%emt 0:00:34]} 7. c3 {[%emt 0:00:22]} Qc7 {[%emt 0:10:14]} 8. Ne5 {[%emt 0:00:14] The position is equal.} b5 {[%emt 0:04:02]} 9. Nd2 {[%emt 0:01:10]} Nbd7 {[%emt 0:01:56]} 10. Ndf3 {[%emt 0:00:28]} O-O {[%emt 0:13:34]} 11. Bd2 {[%emt 0:00:50]} (11. b3 $11) 11... Ne8 {[%emt 0:02:36]} 12. e4 {[%emt 0:05:28]} Ndf6 {[%emt 0:01:34]} 13. exd5 {[%emt 0:00:47]} Nxd5 {[%emt 0:00:09]} 14. Qe2 {[%emt 0:02:13]} Nd6 {[%emt 0:07:21]} 15. Rae1 {[%emt 0:01:20]} Bb7 {[%emt 0:04:57]} 16. h4 {[%emt 0:02:57]} (16. dxc5 $11 Qxc5+ 17. Rf2) 16... Nf6 (16... c4 $5 17. Bc2 Nf5 $11) 17. Be3 {[%emt 0:25:17]} cxd4 {[%emt 0:13:27]} 18. Bxd4 {[%emt 0:00:44]} Nde4 {[%emt 0:01:16]} (18... e6 $15 {might be stronger.}) 19. Qc2 {[%emt 0:07:22]} (19. Kh2 $11 {remains equal.}) 19... Nc5 {[%emt 0:01:28]} (19... Ng3 $17 20. Rf2 e6) 20. f5 $11 {[%emt 0:01:55]} Rad8 {[%emt 0:01:58]} 21. fxg6 {[%emt 0:02:59]} hxg6 {[%emt 0:00:11] [#]} 22. Ng5 $1 {[%emt 0:10:09][%cal Od3g6]} Nxd3 {[%emt 0:01:01]} 23. Qxd3 {[%emt 0:00:06][%cal Oh4h5] h5! is the strong threat.} Qc8 $2 {[%emt 0:03:59][%mdl 8192] [#] This move loses the game for Black.} (23... Bd5 $16) 24. h5 $1 $18 {[%emt 0:01:35][%mdl 512]} Ng4 {[%emt 0:07:27] [#]} (24... Rxd4 25. cxd4) 25. Nxg6 {[%emt 0:01:12][%mdl 512]} fxg6 {[%emt 0:01:24]} (25... f5 26. Nxe7+) 26. Qxg6 {[%emt 0:00:09][%csl Gd4][%cal Rg6g7]} Rf6 {[%emt 0:00:17]} 27. Bxf6 {[%emt 0:01:00]} (27. Rxf6 $142 Qf5 28. Rf8+ (28. Rxf5 Nf6 29. Rxe7 Kh8 30. Qxg7#) 28... Kxf8 29. Qxg7+ Ke8 30. Rxe7#) 27... exf6 {[%emt 0:00:02]} 28. Ne6 {[%emt 0:04:04][%csl Ge6][%cal Rg6g7]} Qd7 {[%emt 0:00:41]} 29. Nxd8 {[%emt 0:00:39] Weighted Error Value: White=0.21 (precise) /Black=0.95.  Loses game:     	---       	Black=1      Mistake:       	White=3     	Black=2      Inaccurate:     	White=4     	Black=6      OK:         	White=5     	Black=2      Strong:       	White=1     	---        Brilliant:      	White=1     	---} 1-0

[Event "53rd Indian Junior Open-ch 2024"]
[Site "Karnal"]
[Date "2024.09.16"]
[Round "1.8"]
[White "Hrishikesh Ganapathy Subramani"]
[Black "Aniruddh Chatterjee"]
[Result "1-0"]
[ECO "A43"]
[WhiteElo "1756"]
[BlackElo "2171"]
[Annotator "RC"]
[PlyCount "105"]
[EventDate "2024.09.16"]
[EventType "swiss"]
[EventCountry "IND"]
[SourceTitle "playchess.com"]
[Source "ChessBase"]
[SourceQuality "1"]
[TimeControl "5400+30"]

1. d4 {[%emt 0:00:07]} Nf6 {[%emt 0:00:11]} 2. Nc3 {[%emt 0:00:07]} c5 {[%emt 0:01:31]} 3. d5 {[%emt 0:00:19]} e6 {[%emt 0:01:45]} 4. e4 {[%emt 0:00:51]} exd5 {[%emt 0:00:48]} 5. Nxd5 {[%emt 0:06:13]} Nxd5 {[%emt 0:00:09]} 6. exd5 {[%emt 0:00:21]} d6 {[%emt 0:00:27]} 7. Nf3 {[%emt 0:00:34]} Be7 {[%emt 0:00:01]} 8. Bd3 {[%emt 0:05:13]} O-O {[%emt 0:00:44]} 9. O-O {[%emt 0:00:56]} a6 {[%emt 0:00:03]} 10. a4 {[%emt 0:00:57]} Nd7 {[%emt 0:00:13]} 11. c3 {[%emt 0:01:02]} Rb8 {[%emt 0:01:37]} 12. a5 {[%emt 0:00:27]} b5 {[%emt 0:00:48]} 13. axb6 {[%emt 0:00:35]} Qxb6 {[%emt 0:00:11]} 14. Re1 {[%emt 0:06:34]} Bf6 {[%emt 0:01:07]} 15. Bf4 Rd8 {[%emt 0:01:25]} 16. Rb1 {[%emt 0:02:51]} Bb7 {[%emt 0:03:15]} 17. Ng5 {[%emt 0:04:20]} g6 {[%emt 0:03:03]} 18. Nxh7 {[%emt 0:05:01]} Be5 {[%emt 0:02:43]} 19. Qf3 {[%emt 0:04:54]} c4 {[%emt 0:01:31]} 20. Ng5 {[%emt 0:02:44]} cxd3 {[%emt 0:12:09]} 21. Bxe5 {[%emt 0:00:30]} Nxe5 {[%emt 0:02:58]} 22. Rxe5 {[%emt 0:00:11]} Qc7 {[%emt 0:04:09]} 23. Re3 {[%emt 0:02:16]} Re8 {[%emt 0:01:23]} 24. Ne4 {[%emt 0:04:40]} Re5 {[%emt 0:01:44]} 25. Rxd3 {[%emt 0:03:17]} Qe7 {[%emt 0:01:32]} 26. Nd2 Bc8 {[%emt 0:13:09]} 27. Re3 {[%emt 0:06:38]} Qc7 {[%emt 0:06:56]} 28. b3 {[%emt 0:02:29]} a5 {[%emt 0:00:08]} 29. Rbe1 {[%emt 0:00:33]} a4 {[%emt 0:00:28]} 30. Rxe5 {[%emt 0:01:48]} dxe5 {[%emt 0:00:04]} 31. b4 {[%emt 0:02:08]} Ba6 {[%emt 0:03:14]} 32. Ne4 {[%emt 0:01:18]} Bc4 {[%emt 0:01:37]} 33. Nc5 {[%emt 0:02:00]} Rd8 {[%emt 0:02:10]} 34. Nxa4 {[%emt 0:00:46]} Bxd5 {[%emt 0:02:59]} 35. Qf6 {[%emt 0:00:22]} Rd6 {[%emt 0:01:04]} 36. Qg5 {[%emt 0:00:56]} Ra6 {[%emt 0:08:04]} 37. Nc5 {[%emt 0:00:59]} Ra3 {[%emt 0:00:28]} 38. Rd1 {[%emt 0:00:42]} Bb3 {[%emt 0:05:04]} 39. Rc1 {[%emt 0:02:04]} Bc4 {[%emt 0:00:24]} 40. h3 {[%emt 0:00:43]} Kg7 {[%emt 0:05:07]} 41. Qg4 {[%emt 0:01:29]} Bd5 {[%emt 0:01:27]} 42. Qd7 {[%emt 0:00:42]} Qxd7 {[%emt 0:00:28]} 43. Nxd7 {[%emt 0:00:02]} f6 {[%emt 0:00:05]} 44. c4 {[%emt 0:00:25]} Bc6 {[%emt 0:00:01]} 45. Nc5 {[%emt 0:00:22]} Ra2 {[%emt 0:00:27]} 46. Ne6+ {[%emt 0:00:18]} Kh6 {[%emt 0:00:16]} 47. b5 {[%emt 0:00:06]} Bd7 {[%emt 0:00:09]} 48. Nc5 {[%emt 0:00:14]} Be8 {[%emt 0:00:01]} 49. Ne4 {[%emt 0:00:12]} f5 {[%emt 0:00:28]} 50. Nd6 {[%emt 0:00:04]} Bd7 {[%emt 0:00:00]} 51. c5 {[%emt 0:00:09]} Rb2 {[%emt 0:00:08]} 52. c6 {[%emt 0:00:10]} Be6 {[%emt 0:00:01]} 53. c7 {[%emt 0:00:11]} 1-0

[Event "53rd Indian Junior Open-ch 2024"]
[Site "Karnal"]
[Date "2024.09.16"]
[Round "1.9"]
[White "Sharnarthi Viresh"]
[Black "Amartya Saumitra Gupta"]
[Result "1-0"]
[ECO "A07"]
[WhiteElo "2147"]
[BlackElo "1755"]
[Annotator "RC"]
[PlyCount "105"]
[EventDate "2024.09.16"]
[EventType "swiss"]
[EventCountry "IND"]
[SourceTitle "playchess.com"]
[Source "ChessBase"]
[SourceQuality "1"]
[TimeControl "5400+30"]

1. Nf3 d5 2. g3 Nf6 3. Bg2 e6 4. O-O Bd6 5. d3 O-O 6. Nbd2 c6 7. e4 e5 8. d4 Nbd7 9. exd5 e4 10. Nh4 cxd5 11. Nf5 Bc7 12. b3 Nb8 13. Ne3 Nc6 14. Bb2 Bb6 15. c3 Re8 16. f3 exf3 17. Qxf3 Be6 18. Rae1 Qd7 19. Qd1 a5 20. Nf3 a4 21. b4 Ne4 22. Nh4 {[%emt 1:41:30]} g6 {[%emt 1:41:30]} 23. b5 {[%emt 0:00:30]} Ne7 {[%emt 0:00:30]} 24. Bxe4 {[%emt 0:00:30]} dxe4 {[%emt 0:00:30]} 25. c4 {[%emt 0:00:30]} Rac8 {[%emt 0:00:30]} 26. Qe2 {[%emt 0:00:30]} Bxd4 {[%emt 0:00:30]} 27. Rd1 {[%emt 0:00:30]} Rxc4 {[%emt 0:00:30]} 28. Qf2 {[%emt 0:00:30]} Bxe3 {[%emt 0:00:30]} 29. Qxe3 {[%emt 0:00:30]} Qxb5 {[%emt 0:00:30]} 30. Rf2 {[%emt 0:00:30]} Nd5 {[%emt 0:00:30]} 31. Rxd5 {[%emt 0:00:30]} Qxd5 {[%emt 0:00:30]} 32. Qh6 {[%emt 0:00:30]} Rd4 {[%emt 0:00:30]} 33. Rd2 {[%emt 0:00:30]} Qh5 {[%emt 0:00:30]} 34. Qxh5 {[%emt 0:00:30]} Rxd2 {[%emt 0:00:30]} 35. Qb5 {[%emt 0:00:30]} Bd7 {[%emt 0:00:30]} 36. Qb4 {[%emt 0:00:30]} e3 {[%emt 0:00:30]} 37. Nf3 {[%emt 0:00:30]} a3 {[%emt 0:00:30]} 38. Bc3 {[%emt 0:00:30]} Rd1+ {[%emt 0:00:30]} 39. Ne1 Rc8 {[%emt 0:00:30]} 40. Qxa3 {[%emt 0:01:00]} Be6 {[%emt 0:00:30]} 41. Qa5 {[%emt 0:00:30]} b6 {[%emt 0:00:30]} 42. Qe5 {[%emt 0:00:30]} Rxc3 {[%emt 0:00:30]} 43. Qxc3 {[%emt 0:00:30]} Bxa2 {[%emt 0:00:30]} 44. Qxe3 {[%emt 0:00:30]} Be6 {[%emt 0:00:30]} 45. Kf2 {[%emt 0:00:30]} b5 {[%emt 0:00:30]} 46. Nd3 {[%emt 0:00:30]} Rh1 {[%emt 0:00:30]} 47. h4 {[%emt 0:00:30]} Rd1 {[%emt 0:00:30]} 48. Nf4 {[%emt 0:00:30]} Rd6 {[%emt 0:00:30]} 49. Qc5 {[%emt 0:00:30]} Rd2+ {[%emt 0:00:30]} 50. Ke3 {[%emt 0:00:30]} Rb2 {[%emt 0:00:30]} 51. h5 {[%emt 0:00:30]} gxh5 {[%emt 0:00:30]} 52. Qg5+ {[%emt 0:00:30]} Kf8 {[%emt 0:00:30]} 53. Nxe6+ {[%emt 0:00:30]} 1-0

[Event "53rd Indian Junior Open-ch 2024"]
[Site "Karnal"]
[Date "2024.09.16"]
[Round "1.10"]
[White "Rishabh Pradhan"]
[Black "Gawai Siddhant"]
[Result "0-1"]
[ECO "C78"]
[WhiteElo "1755"]
[BlackElo "2131"]
[Annotator "TA"]
[PlyCount "68"]
[EventDate "2024.09.16"]
[EventType "swiss"]
[EventCountry "IND"]
[SourceTitle "playchess.com"]
[Source "ChessBase"]
[SourceQuality "1"]
[TimeControl "5400+30"]

{[%evp 19,68,13,25,-42,-1,-70,-62,-71,-54,-83,-102,-87,-83,-81,-76,-77,-71,-93,-42,-129,-131,-166,-118,-146,-147,-160,-157,-155,-142,-794,-393,-403,-396,-467,-458,-601,-623,-586,-490,-942,-945,-955,-926,-1643,-1475,-1710,-1617,-1645,-1543,-1565,-1553]} 1. e4 e5 2. Nf3 Nc6 3. Bb5 a6 4. Ba4 Nf6 5. O-O b5 6. Bb3 Bc5 7. c3 d6 8. a4 Bb7 9. d4 Bb6 10. Re1 O-O 11. Na3 (11. d5 $11 Ne7 12. axb5) 11... h6 12. h3 (12. Be3 $11) 12... exd4 $15 13. cxd4 {Black is slightly better.} Re8 14. d5 Na5 {And now ...Nxb3 would win.} 15. Bc2 b4 16. Nb1 c6 17. dxc6 Bxc6 18. Nbd2 Ra7 ({Better is} 18... Rc8 $17 19. Re2 Bb7) 19. Re2 {[%emt 1:40:00]} ({White should play} 19. b3 $15) 19... Rae7 $17 {[%emt 1:40:00]} 20. Qe1 {[%emt 0:00:30]} Qa8 {[%emt 0:00:30]} (20... d5 $19 {[%cal Rd5e4]} 21. e5 d4) 21. Nh4 {[%emt 0:00:30]} Re6 {[%emt 0:00:30][%cal Rf6e4] Black is much more active.} 22. Nf5 {[%emt 0:00:30]} Nxe4 {[%emt 0:00:30]} 23. Nxe4 {[%emt 0:00:30]} Bxe4 {[%emt 0:00:30]} 24. Nxd6 $2 {[%emt 0:00:30][%mdl 8192] [#]} (24. Bxe4 $17 Rxe4 25. Be3) 24... Bxc2 {[%emt 0:00:30]} ({Not} 24... Rxd6 25. Bxe4 Qd8 26. Bd2 $15 (26. Qxb4 $2 {loses.} Rd4 $19) (26. Bh7+ $2 Kxh7 27. Be3 Qe7 $19)) (24... Bxg2 $142 25. Nxe8 Bh1 (25... Bxh3 26. Nf6+ gxf6 27. Be4 $17) 26. Nf6+ gxf6) 25. Nxe8 $19 {[%emt 0:00:30]} Qxe8 {[%emt 0:00:30]} 26. Rxe6 {[%emt 0:00:30]} Qxe6 {[%emt 0:00:30] Black is clearly winning.} 27. Qxe6 {[%emt 0:00:30]} fxe6 {[%emt 0:00:30]} 28. Bf4 {[%emt 0:00:30]} Bd4 {[%emt 0:00:30]} 29. Rc1 {[%emt 0:00:30]} (29. Re1 $142 Kf7 (29... Bxa4 $2 30. Ra1 $19) (29... Bxb2 $2 30. Rxe6 b3 31. Rxa6 $19) 30. Bd2) 29... b3 {[%emt 0:00:30][%cal Oa5c4]} 30. Re1 {[%emt 0:00:30]} Kf7 {[%emt 0:00:30]} 31. Be5 {[%emt 0:00:30]} Bxe5 {[%emt 0:00:30]} 32. Rxe5 {[%emt 0:00:30]} Nc4 {[%emt 0:00:30][%csl LRb2,LRe5]} 33. Rc5 {[%emt 0:00:30]} Nxb2 {[%emt 0:00:30]} 34. Rc7+ {[%emt 0:00:30]} Kf6 {[%emt 0:00:30] White got outplayed after the opening.   Weighted Error Value: White=0.99/Black=0.49.  Loses game:     	White=1     	---        Mistake:       	White=2     	Black=3      Inaccurate:     	White=2     	Black=1      OK:         	White=5     	Black=5      Best:        	White=1     	Black=2} 0-1

[Event "53rd Indian Junior Open-ch 2024"]
[Site "Karnal"]
[Date "2024.09.18"]
[Round "4.1"]
[White "Rohit S"]
[Black "Sri Charan Sandipagu"]
[Result "0-1"]
[WhiteElo "2309"]
[BlackElo "1964"]
[PlyCount "84"]
[EventDate "2024.09.16"]
[EventType "swiss"]
[EventCountry "IND"]
[TimeControl "5400+30"]

1. e4 {[%emt 0:00:04]} c6 {[%emt 0:00:10]} 2. Nc3 {[%emt 0:00:46]} d5 {[%emt 0:00:07]} 3. Nf3 {[%emt 0:00:05]} dxe4 {[%emt 0:00:23]} 4. Nxe4 {[%emt 0:00:06]} Nf6 {[%emt 0:00:05]} 5. Qe2 {[%emt 0:00:06]} Nxe4 {[%emt 0:00:06]} 6. Qxe4 {[%emt 0:00:05]} Qa5 {[%emt 0:01:26]} 7. b4 {[%emt 0:03:50]} Qf5 {[%emt 0:04:04]} 8. Qc4 {[%emt 0:11:46]} e5 {[%emt 0:07:30]} 9. Bd3 {[%emt 0:02:55]} Qe6 {[%emt 0:03:20]} 10. Qxe6+ {[%emt 0:09:04]} Bxe6 {[%emt 0:00:45]} 11. Nxe5 {[%emt 0:00:15]} Bxb4 {[%emt 0:00:24]} 12. Rb1 {[%emt 0:00:05]} Bd6 {[%emt 0:00:12]} 13. Nc4 {[%emt 0:00:13]} Bxc4 {[%emt 0:00:14]} 14. Bxc4 {[%emt 0:00:06]} b6 {[%emt 0:01:19]} 15. O-O {[%emt 0:04:04]} O-O {[%emt 0:00:17]} 16. Rb3 {[%emt 0:05:02]} b5 {[%emt 0:05:18]} 17. Be2 {[%emt 0:03:43]} a5 {[%emt 0:01:45]} 18. Bf3 {[%emt 0:02:54]} Ra7 {[%emt 0:00:45]} 19. Rd3 {[%emt 0:03:40]} Rd8 {[%emt 0:00:48]} 20. Bb2 {[%emt 0:12:54]} Re7 {[%emt 0:02:22]} 21. Bd4 {[%emt 0:06:22]} Bb4 {[%emt 0:08:37]} 22. Re3 {[%emt 0:03:16]} Rxd4 {[%emt 0:00:58]} 23. c3 {[%emt 0:00:50]} Rxd2 {[%emt 0:01:30]} 24. cxb4 {[%emt 0:00:04]} Rxe3 {[%emt 0:00:06]} 25. fxe3 {[%emt 0:00:03]} axb4 {[%emt 0:00:13]} 26. Rc1 {[%emt 0:04:41]} g6 {[%emt 0:02:38]} 27. Bxc6 {[%emt 0:00:35]} Nxc6 {[%emt 0:00:06]} 28. Rxc6 {[%emt 0:00:03]} Rxa2 {[%emt 0:00:05]} 29. Rc1 {[%emt 0:00:03]} b3 {[%emt 0:00:13]} 30. Rb1 {[%emt 0:00:03]} b2 {[%emt 0:00:03]} 31. Kf2 {[%emt 0:00:03]} Kg7 {[%emt 0:00:06]} 32. Ke2 {[%emt 0:01:45]} Kf6 {[%emt 0:01:01]} 33. Kd2 {[%emt 0:00:04]} Ke5 {[%emt 0:00:04]} 34. Kc2 {[%emt 0:00:03]} Ke4 {[%emt 0:00:38]} 35. Kb3 {[%emt 0:00:02]} Ra4 {[%emt 0:00:23]} 36. Rxb2 {[%emt 0:00:01]} Kxe3 {[%emt 0:00:07]} 37. Rc2 {[%emt 0:00:14]} Rd4 {[%emt 0:00:32]} 38. Rc7 {[%emt 0:00:23]} Rf4 {[%emt 0:00:06]} 39. g3 {[%emt 0:01:31]} Rf3 {[%emt 0:00:31]} 40. Kc3 {[%emt 0:00:46]} Kf2+ {[%emt 0:00:24]} 41. Kd4 {[%emt 0:00:52]} Kg2 {[%emt 0:00:18]} 42. Ke4 {[%emt 0:00:03]} Rf1 {[%emt 0:00:23]} 0-1

[Event "53rd Indian Junior Open-ch 2024"]
[Site "Karnal"]
[Date "2024.09.18"]
[Round "4.3"]
[White "Bivor Adak"]
[Black "Madhvendra Pratap Sharma"]
[Result "0-1"]
[WhiteElo "1918"]
[BlackElo "2061"]
[PlyCount "82"]
[EventDate "2024.09.16"]
[EventType "swiss"]
[EventCountry "IND"]
[TimeControl "5400+30"]

1. e4 {[%emt 0:00:41]} e6 {[%emt 0:00:08]} 2. d4 {[%emt 0:00:59]} d5 {[%emt 0:00:12]} 3. Nc3 {[%emt 0:00:57]} Bb4 {[%emt 0:00:06]} 4. e5 {[%emt 0:01:23]} c5 {[%emt 0:00:08]} 5. a3 {[%emt 0:00:49]} Bxc3+ {[%emt 0:00:50]} 6. bxc3 {[%emt 0:00:14]} Nc6 {[%emt 0:00:12]} 7. Qg4 {[%emt 0:01:30]} g6 {[%emt 0:00:43]} 8. h4 {[%emt 0:01:20]} h6 {[%emt 0:01:49]} 9. h5 {[%emt 0:01:18]} g5 {[%emt 1:30:52]} 10. f4 {[%emt 0:01:11]} f5 {[%emt 0:00:00]} 11. Qg3 {[%emt 0:01:11]} g4 {[%emt 0:00:00]} 12. dxc5 {[%emt 0:00:35]} Qa5 {[%emt 0:00:00]} 13. a4 {[%emt 0:01:18]} Nge7 {[%emt 0:00:00]} 14. Bb5 {[%emt 0:01:32]} Bd7 {[%emt 0:00:00]} 15. Ne2 {[%emt 0:05:51]} O-O {[%emt 0:00:00]} 16. Kf2 {[%emt 0:12:44]} Nb8 {[%emt 0:00:00]} 17. Ba3 {[%emt 0:07:35]} Bxb5 {[%emt 0:00:00]} 18. axb5 {[%emt 0:00:09]} Qxb5 {[%emt 0:00:00]} 19. c6 {[%emt 0:00:08]} Nbxc6 {[%emt 0:00:00]} 20. Rhb1 {[%emt 0:00:10]} Qc4 {[%emt 0:00:00]} 21. Rxb7 {[%emt 0:01:03]} Qa6 {[%emt 0:00:00]} 22. Rbb1 {[%emt 0:05:12]} Qc8 {[%emt 0:00:00]} 23. Qd3 {[%emt 0:01:19]} Rf7 {[%emt 0:00:00]} 24. Bd6 {[%emt 0:11:03]} Qd7 {[%emt 0:00:00]} 25. Ra6 {[%emt 0:13:09]} Nc8 {[%emt 0:00:00]} 26. Nd4 {[%emt 0:04:16]} Nxd6 {[%emt 0:00:00]} 27. exd6 {[%emt 0:00:08]} Nb8 {[%emt 0:00:00]} 28. Rbb6 {[%emt 0:26:45]} Nxa6 29. Rxa6 Rb8 {[%emt 0:10:00]} 30. Nc6 {[%emt 0:00:00]} Rb6 {[%emt 0:00:00]} 31. Ne5 {[%emt 0:00:00]} Qxd6 {[%emt 0:00:00]} 32. Nxf7 {[%emt 0:00:00]} Qxf4+ {[%emt 0:00:00]} 33. Ke2 {[%emt 0:00:00]} Kxf7 {[%emt 0:00:00]} 34. Rxa7+ {[%emt 0:00:00]} Kf6 {[%emt 0:00:00]} 35. Rh7 {[%emt 0:00:00]} Rc6 {[%emt 0:00:00]} 36. Kd1 {[%emt 0:00:00]} Rb6 {[%emt 0:00:00]} 37. Ke2 {[%emt 0:00:00]} Qe5+ {[%emt 0:00:00]} 38. Kf2 {[%emt 0:00:00]} Rb1 {[%emt 0:00:00]} 39. Rxh6+ {[%emt 0:00:00]} Kg5 {[%emt 0:00:00]} 40. Qd2+ {[%emt 0:00:00]} f4 {[%emt 0:00:00]} 41. Rg6+ {[%emt 0:00:00]} Kxh5 {[%emt 0:00:00]} 0-1